fUSD/lending_fUSD_20241015
["ID","MTS","AMOUNT","RATE_DAILY","PERIOD"]
[340284356,1729005055780,-500.0,0.00024931,7]
[340284357,1729005055790,-500.0,0.00024931,7]
[340284358,1729005055799,-500.0,0.00024931,7]
[340284359,1729005055808,-500.0,0.00024931,7]
[340284360,1729005055816,-269.26888232,0.00024931,7]
[340284361,1729005056271,-230.73111768,0.00024931,7]
[340284362,1729005056281,-257.43290635,0.00024931,7]
[340284363,1729005056294,-242.56709365,0.00024931,7]
[340284364,1729005056303,-500.0,0.00024931,7]
[340284365,1729005056313,-500.0,0.00024931,7]
[340284366,1729005056323,-500.0,0.00024931,7]
[340284367,1729005056332,-500.0,0.00024931,7]
[340284368,1729005056342,-500.0,0.00024931,7]
[340284369,1729005056351,-500.0,0.00024931,7]
[340284370,1729005056360,-358.73093821,0.00024931,7]
[340284371,1729005056376,-141.26906179,0.00024931,7]
[340284372,1729005056386,-500.0,0.00024931,7]
[340284373,1729005056395,-500.0,0.00024931,7]
[340284374,1729005056405,-500.0,0.00024931,7]
[340284375,1729005056540,-500.0,0.00024931,7]
[340284376,1729005056550,-500.0,0.00024931,7]
[340284377,1729005056559,-500.0,0.00024931,7]
[340284378,1729005056569,-500.0,0.00024931,7]
[340284379,1729005056578,-500.0,0.00024931,7]
[340284380,1729005056588,-500.0,0.00024931,7]
[340284381,1729005056597,-500.0,0.00024931,7]
[340284382,1729005056607,-511.41577269,0.00024931,7]
[340284383,1729005056616,-571.6,0.00024931,7]
[340284384,1729005056626,-299.07646665,0.00024931,7]
[340284385,1729005056646,-200.92353335,0.00024931,7]
[340284386,1729005056655,-299.07646665,0.00024931,7]
[340284387,1729005056668,-200.92353335,0.00024931,7]
[340284388,1729005056678,-500.0,0.00024931,7]
[340284389,1729005056687,-500.0,0.00024931,7]
[340284390,1729005056697,-500.0,0.00024931,7]
[340284391,1729005056706,-500.0,0.00024931,7]
[340284392,1729005056715,-500.0,0.00024931,7]
[340284393,1729005056724,-500.0,0.00024931,7]
[340284394,1729005056734,-533.62,0.00024931,7]
[340284395,1729005056743,-500.0,0.00024931,7]
[340284396,1729005056756,-500.0,0.00024931,7]
[340284397,1729005056765,-500.0,0.00024931,7]
[340284398,1729005056774,-500.0,0.00024931,7]
[340284399,1729005056783,-500.0,0.00024931,7]
[340284400,1729005056792,-500.0,0.00024931,7]
[340284401,1729005056801,-346.34159687,0.00024931,7]
[340284402,1729005056810,-500.0,0.00024931,7]
[340284403,1729005056820,-500.0,0.00024931,7]
[340284404,1729005056829,-500.0,0.00024931,7]
[340284405,1729005056838,-500.0,0.00024931,7]
[340284406,1729005056847,-500.0,0.00024931,7]
[340284407,1729005056857,-500.0,0.00024931,7]
[340284408,1729005056866,-500.0,0.00024931,7]
[340284409,1729005056875,-500.0,0.00024931,7]
[340284410,1729005056883,-500.0,0.00024931,7]
[340284411,1729005056893,-500.0,0.00024931,7]
[340284412,1729005056903,-500.0,0.00024931,7]
[340284413,1729005056913,-261.32739115,0.00024931,7]
[340284414,1729005056923,-500.0,0.00024931,7]
[340284415,1729005056932,-500.0,0.00024931,7]
[340284416,1729005056942,-500.0,0.00024931,7]
[340284417,1729005056952,-500.0,0.00024931,7]
[340284418,1729005056963,-500.0,0.00024931,7]
[340284419,1729005056973,-500.0,0.00024931,7]
[340284420,1729005056982,-500.0,0.00024931,7]
[340284421,1729005056992,-500.0,0.00024931,7]
[340284422,1729005057003,-500.0,0.00024931,7]
[340284423,1729005057012,-537.57184669,0.00024931,7]
[340284424,1729005057022,-500.0,0.00024931,7]
[340284425,1729005057031,-500.0,0.00024931,7]
[340284426,1729005057040,-500.0,0.00024931,7]
[340284427,1729005057049,-500.0,0.00024931,7]
[340284428,1729005057058,-500.0,0.00024931,7]
[340284429,1729005057068,-500.0,0.00024931,7]
[340284430,1729005057077,-500.0,0.00024931,7]
[340284431,1729005057086,-646.8,0.00024931,7]
[340284432,1729005057096,-500.0,0.00024931,7]
[340284433,1729005057105,-500.0,0.00024931,7]
[340284434,1729005057114,-241.93,0.00024931,7]
[340284435,1729005057124,-500.0,0.00024931,7]
[340284436,1729005057133,-500.0,0.00024931,7]
[340284437,1729005057142,-500.0,0.00024931,7]
[340284438,1729005057151,-500.0,0.00024931,7]
[340284439,1729005057161,-500.0,0.00024931,7]
[340284440,1729005057170,-500.0,0.00024931,7]
[340284441,1729005057179,-500.0,0.00024931,7]
[340284442,1729005057189,-500.0,0.00024931,7]
[340284443,1729005057198,-500.0,0.00024931,7]
[340284444,1729005057207,-500.0,0.00024931,7]
[340284445,1729005057216,-500.0,0.00024931,7]
[340284446,1729005057226,-500.0,0.00024931,7]
[340284447,1729005057235,-500.0,0.00024931,7]
[340284448,1729005057244,-500.0,0.00024931,7]
[340284449,1729005057256,-500.0,0.00024931,7]
[340284450,1729005057265,-500.0,0.00024931,7]
[340284451,1729005057275,-500.0,0.00024931,7]
[340284452,1729005057285,-286.61752529,0.00024931,7]
[340284453,1729005057294,-500.0,0.00024931,7]
[340284454,1729005057303,-368.36810663,0.00024931,7]
[340284455,1729005057352,-131.63189337,0.00024931,7]
[340284456,1729005057362,-509.88614971,0.00024931,7]
[340284457,1729005057371,-500.0,0.00024931,7]
[340284458,1729005057384,-500.0,0.00024931,7]
[340284459,1729005057393,-500.0,0.00024931,7]
[340284460,1729005057403,-500.0,0.00024931,7]
[340284461,1729005057412,-500.0,0.00024931,7]
[340284462,1729005057423,-191.12215921,0.00024931,7]
[340284463,1729005057432,-500.0,0.00024931,7]
[340284464,1729005057441,-500.0,0.00024931,7]
[340284465,1729005057451,-500.0,0.00024931,7]
[340284466,1729005057461,-500.0,0.00024931,7]
[340284467,1729005057470,-500.0,0.00024931,7]
[340284468,1729005057480,-500.0,0.00024931,7]
[340284469,1729005057489,-500.0,0.00024931,7]
[340284470,1729005057498,-500.0,0.00024931,7]
[340284471,1729005057510,-500.0,0.00024931,7]
[340284472,1729005057520,-500.0,0.00024931,7]
[340284473,1729005057529,-500.0,0.00024931,7]
[340284474,1729005057538,-500.0,0.00024931,7]
[340284475,1729005057548,-500.0,0.00024931,7]
[340284476,1729005057557,-500.0,0.00024931,7]
[340284477,1729005057566,-397.29687483,0.00024931,7]
[340284478,1729005057575,-500.0,0.00024931,7]
[340284479,1729005057585,-500.0,0.00024931,7]
[340284480,1729005057594,-500.0,0.00024931,7]
[340284481,1729005057603,-500.0,0.00024931,7]
[340284482,1729005057612,-500.0,0.00024931,7]
[340284483,1729005057621,-500.0,0.00024931,7]
[340284484,1729005057630,-500.0,0.00024931,7]
[340284485,1729005057640,-582.09378133,0.00024931,7]
[340284486,1729005057648,-500.0,0.00024931,7]
[340284487,1729005057658,-500.0,0.00024931,7]
[340284488,1729005057667,-500.0,0.00024931,7]
[340284489,1729005057676,-500.0,0.00024931,7]
[340284490,1729005057686,-500.0,0.00024931,7]
[340284491,1729005057695,-500.0,0.00024931,7]
[340284492,1729005057704,-500.0,0.00024931,7]
[340284493,1729005057713,-182.29,0.00024931,7]
[340284494,1729005057723,-500.0,0.00024931,7]
[340284495,1729005057732,-500.0,0.00024931,7]
[340284496,1729005057742,-500.0,0.00024931,7]
[340284497,1729005057753,-500.0,0.00024931,7]
[340284498,1729005057763,-500.0,0.00024931,7]
[340284499,1729005057773,-623.36,0.00024931,7]
[340284500,1729005057782,-541.2,0.00024931,7]
[340284501,1729005057792,-277.02193204,0.00024931,7]
[340284502,1729005057801,-500.0,0.00024931,7]
[340284503,1729005057810,-500.0,0.00024931,7]
[340284504,1729005057819,-500.0,0.00024931,7]
[340284505,1729005057830,-500.0,0.00024931,7]
[340284506,1729005057839,-500.0,0.00024931,7]
[340284507,1729005057848,-288.64945111,0.00024931,7]
[340284508,1729005057890,-211.35054889,0.00024931,7]
[340284509,1729005057899,-500.0,0.00024931,7]
[340284510,1729005057909,-500.0,0.00024931,7]
[340284511,1729005057919,-500.0,0.00024931,7]
[340284512,1729005057928,-500.0,0.00024931,7]
[340284513,1729005057937,-500.0,0.00024931,7]
[340284514,1729005057946,-550.18539837,0.00024931,7]
[340284515,1729005057955,-500.0,0.00024931,7]
[340284516,1729005057964,-500.0,0.00024931,7]
[340284517,1729005057974,-500.0,0.00024931,7]
[340284518,1729005057984,-500.0,0.00024931,7]
[340284519,1729005057993,-500.0,0.00024931,7]
[340284520,1729005058007,-500.0,0.00024931,7]
[340284521,1729005058016,-500.0,0.00024931,7]
[340284522,1729005058025,-514.09633996,0.00024931,7]
[340284523,1729005058034,-500.0,0.00024931,7]
[340284524,1729005058043,-500.0,0.00024931,7]
[340284525,1729005058051,-500.0,0.00024931,7]
[340284526,1729005058060,-500.0,0.00024931,7]
[340284527,1729005058070,-500.0,0.00024931,7]
[340284528,1729005058078,-500.0,0.00024931,7]
[340284529,1729005058088,-500.0,0.00024931,7]
[340284530,1729005058097,-500.0,0.00024931,7]
[340284531,1729005058106,-500.0,0.00024931,7]
[340284532,1729005058115,-500.0,0.00024931,7]
[340284533,1729005058124,-500.0,0.00024931,7]
[340284534,1729005058232,-500.0,0.00024931,7]
[340284535,1729005058242,-500.0,0.00024931,7]
[340284536,1729005058256,-509.28182305,0.00024931,7]
[340284537,1729005058266,-500.0,0.00024931,7]
[340284538,1729005058276,-500.0,0.00024931,7]
[340284539,1729005058285,-500.0,0.00024931,7]
[340284540,1729005058294,-500.0,0.00024931,7]
[340284541,1729005058303,-500.0,0.00024931,7]
[340284542,1729005058312,-500.0,0.00024931,7]
[340284543,1729005058321,-500.0,0.00024931,7]
[340284544,1729005058331,-201.52,0.00024931,7]
[340284545,1729005058339,-500.0,0.00024931,7]
[340284546,1729005058349,-500.0,0.00024931,7]
[340284547,1729005058358,-500.0,0.00024931,7]
[340284548,1729005058368,-500.0,0.00024931,7]
[340284549,1729005058381,-331.00815625,0.00024931,7]
[340284550,1729005058391,-500.0,0.00024931,7]
[340284551,1729005058401,-500.0,0.00024931,7]
[340284552,1729005058412,-500.0,0.00024931,7]
[340284553,1729005058422,-500.0,0.00024931,7]
[340284554,1729005058431,-500.0,0.00024931,7]
[340284555,1729005058440,-500.0,0.00024931,7]
[340284556,1729005058449,-500.0,0.00024931,7]
[340284557,1729005058459,-500.0,0.00024931,7]
[340284558,1729005058468,-500.0,0.00024931,7]
[340284559,1729005058477,-500.0,0.00024931,7]
[340284560,1729005058488,-500.0,0.00024931,7]
[340284561,1729005058497,-500.0,0.00024931,7]
[340284562,1729005058510,-500.0,0.00024931,7]
[340284563,1729005058520,-500.0,0.00024931,7]
[340284564,1729005058529,-500.0,0.00024931,7]
[340284565,1729005058538,-500.0,0.00024931,7]
[340284566,1729005058548,-500.0,0.00024931,7]
[340284567,1729005058557,-500.0,0.00024931,7]
[340284568,1729005058566,-500.0,0.00024931,7]
[340284569,1729005058575,-500.0,0.00024931,7]
[340284570,1729005058585,-500.0,0.00024931,7]
[340284571,1729005058594,-500.0,0.00024931,7]
[340284572,1729005058604,-500.0,0.00024931,7]
[340284573,1729005058613,-500.0,0.00024931,7]
[340284574,1729005058622,-500.0,0.00024931,7]
[340284575,1729005058631,-500.0,0.00024931,7]
[340284576,1729005058640,-500.0,0.00024931,7]
[340284577,1729005058649,-422.94,0.00024931,7]
[340284578,1729005058658,-500.0,0.00024931,7]
[340284579,1729005058667,-500.0,0.00024931,7]
[340284580,1729005058677,-500.0,0.00024931,7]
[340284581,1729005058686,-500.0,0.00024931,7]
[340284582,1729005058695,-500.0,0.00024931,7]
[340284583,1729005058705,-500.0,0.00024931,7]
[340284584,1729005058713,-500.0,0.00024931,7]
[340284585,1729005058722,-500.0,0.00024931,7]
[340284586,1729005058731,-500.0,0.00024931,7]
[340284587,1729005058740,-526.21245826,0.00024931,7]
[340284588,1729005058749,-500.0,0.00024931,7]
[340284589,1729005058763,-500.0,0.00024931,7]
[340284590,1729005058776,-500.0,0.00024931,7]
[340284591,1729005058785,-500.0,0.00024931,7]
[340284592,1729005058793,-500.0,0.00024931,7]
[340284593,1729005058802,-500.0,0.00024931,7]
[340284594,1729005058811,-500.0,0.00024931,7]
[340284595,1729005058821,-500.0,0.00024931,7]
[340284596,1729005058830,-500.0,0.00024931,7]
[340284597,1729005058839,-197.84,0.00024931,7]
[340284598,1729005058848,-500.0,0.00024931,7]
[340284599,1729005058857,-500.0,0.00024931,7]
[340284600,1729005058866,-281.92,0.00024931,7]
[340284601,1729005058875,-500.0,0.00024931,7]
[340284602,1729005058884,-500.0,0.00024931,7]
[340284603,1729005058893,-500.0,0.00024931,7]
[340284604,1729005058902,-500.0,0.00024931,7]
[340284605,1729005058911,-500.0,0.00024931,7]
[340284606,1729005058920,-500.0,0.00024931,7]
[340284607,1729005058933,-500.0,0.00024931,7]
[340284608,1729005058951,-500.0,0.00024931,7]
[340284609,1729005058968,-151.0,0.00024931,7]
[340284610,1729005058986,-500.0,0.00024931,7]
[340284611,1729005059007,-500.0,0.00024931,7]
[340284612,1729005059023,-151.0,0.00024931,7]
[340284613,1729005059040,-500.0,0.00024931,7]
[340284614,1729005059055,-500.0,0.00024931,7]
[340284615,1729005059069,-151.0,0.00024931,7]
[340284616,1729005059087,-562.62816203,0.00024931,7]
[340284617,1729005059105,-500.0,0.00024931,7]
[340284618,1729005059120,-500.0,0.00024931,7]
[340284619,1729005059135,-500.0,0.00024931,7]
[340284620,1729005059152,-500.0,0.00024931,7]
[340284621,1729005059167,-500.0,0.00024931,7]
[340284622,1729005059183,-500.0,0.00024931,7]
[340284623,1729005059196,-500.0,0.00024931,7]
[340284624,1729005059212,-500.0,0.00024931,7]
[340284625,1729005059227,-500.0,0.00024931,7]
[340284626,1729005059241,-500.0,0.00024931,7]
[340284627,1729005059259,-500.0,0.00024931,7]
[340284628,1729005059274,-500.0,0.00024931,7]
[340284629,1729005059288,-500.0,0.00024931,7]
[340284630,1729005059303,-500.0,0.00024931,7]
[340284631,1729005059317,-500.0,0.00024931,7]
[340284632,1729005059333,-500.0,0.00024931,7]
[340284633,1729005059347,-500.0,0.00024931,7]
[340284634,1729005059362,-500.0,0.00024931,7]
[340284635,1729005059378,-270.90896,0.00024931,7]
[340284636,1729005059395,-354.41606755,0.00024931,7]
[340284637,1729005059409,-500.0,0.00024931,7]
[340284638,1729005059424,-500.0,0.00024931,7]
[340284639,1729005059438,-500.0,0.00024931,7]
[340284640,1729005059452,-500.0,0.00024931,7]
[340284641,1729005059467,-500.0,0.00024931,7]
[340284642,1729005059481,-500.0,0.00024931,7]
[340284643,1729005059496,-500.0,0.00024931,7]
[340284644,1729005059514,-500.0,0.00024931,7]
[340284645,1729005059529,-500.0,0.00024931,7]
[340284646,1729005059544,-500.0,0.00024931,7]
[340284647,1729005059559,-500.0,0.00024931,7]
[340284648,1729005059573,-500.0,0.00024931,7]
[340284649,1729005059588,-500.0,0.00024931,7]
[340284650,1729005059602,-500.0,0.00024931,7]
[340284651,1729005059617,-500.0,0.00024931,7]
[340284652,1729005059631,-500.0,0.00024931,7]
[340284653,1729005059646,-500.0,0.00024931,7]
[340284654,1729005059661,-166.16,0.00024931,7]
[340284655,1729005059676,-500.0,0.00024931,7]
[340284656,1729005059690,-500.0,0.00024931,7]
[340284657,1729005059705,-500.0,0.00024931,7]
[340284658,1729005059719,-500.0,0.00024931,7]
[340284659,1729005059735,-511.32856134,0.00024931,7]
[340284660,1729005059749,-500.0,0.00024931,7]
[340284661,1729005059770,-500.0,0.00024931,7]
[340284662,1729005059784,-520.51804553,0.00024931,7]
[340284663,1729005059800,-500.0,0.00024931,7]
[340284664,1729005059815,-500.0,0.00024931,7]
[340284665,1729005059831,-500.0,0.00024931,7]
[340284666,1729005059846,-500.0,0.00024931,7]
[340284667,1729005059860,-500.0,0.00024931,7]
[340284668,1729005059875,-500.0,0.00024931,7]
[340284669,1729005059891,-512.16772593,0.00024931,7]
[340284670,1729005059900,-500.0,0.00024931,7]
[340284671,1729005059909,-500.0,0.00024931,7]
[340284672,1729005059919,-500.0,0.00024931,7]
[340284673,1729005059928,-500.0,0.00024931,7]
[340284674,1729005059937,-500.0,0.00024931,7]
[340284675,1729005059946,-500.0,0.00024931,7]
[340284676,1729005059956,-500.0,0.00024931,7]
[340284677,1729005059965,-500.0,0.00024931,7]
[340284678,1729005059975,-500.0,0.00024931,7]
[340284679,1729005059984,-500.0,0.00024931,7]
[340284680,1729005059993,-500.0,0.00024931,7]
[340284681,1729005060217,-500.0,0.00024931,7]
[340284682,1729005060247,-500.0,0.00024931,7]
[340284683,1729005060264,-500.0,0.00024931,7]
[340284684,1729005060274,-500.0,0.00024931,7]
[340284685,1729005060284,-500.0,0.00024931,7]
[340284686,1729005060294,-500.0,0.00024931,7]
[340284687,1729005060304,-597.92385803,0.00024931,7]
[340284688,1729005060314,-500.0,0.00024931,7]
[340284689,1729005060325,-442.06,0.00024931,7]
[340284690,1729005060334,-500.0,0.00024931,7]
[340284691,1729005060343,-386.72,0.00024931,7]
[340284692,1729005060353,-500.0,0.00024931,7]
[340284693,1729005060363,-500.0,0.00024931,7]
[340284694,1729005060373,-500.0,0.00024931,7]
[340284695,1729005060383,-500.0,0.00024931,7]
[340284696,1729005060393,-500.0,0.00024931,7]
[340284697,1729005060403,-500.0,0.00024931,7]
[340284698,1729005060414,-500.0,0.00024931,7]
[340284699,1729005060423,-500.0,0.00024931,7]
[340284700,1729005060432,-500.0,0.00024931,7]
[340284701,1729005060443,-500.0,0.00024931,7]
[340284702,1729005060453,-500.0,0.00024931,7]
[340284703,1729005060463,-500.0,0.00024931,7]
[340284704,1729005060472,-500.0,0.00024931,7]
[340284705,1729005060482,-500.0,0.00024931,7]
[340284706,1729005060492,-500.0,0.00024931,7]
[340284707,1729005060502,-500.0,0.00024931,7]
[340284708,1729005060521,-500.0,0.00024931,7]
[340284709,1729005060531,-295.91126569,0.00024931,7]
[340284710,1729005192578,2000.0,0.00027,120]
[340284711,1729005196647,500.0,0.00027,120]
[340284712,1729005200208,500.0,0.00027,120]
[340284714,1729005733465,-156.8,0.00010959,2]
[340284715,1729005792173,2000.0,0.00027,120]
[340284716,1729005798710,500.0,0.00027,120]
[340284717,1729005801782,500.0,0.00027,120]
[340284718,1729005814834,-429.691158,0.00019626,2]
[340284719,1729005814858,-150.0,0.0002,10]
[340284720,1729005814879,-150.0,0.0002,2]
[340284721,1729005825603,-2913.508842,0.00020068,2]
[340284757,1729006232386,-300.0,0.00010899,2]
[340284759,1729006232395,-150.0,0.00010899,2]
[340284761,1729006232405,-207.36,0.000109,2]
[340284764,1729006232416,-7017.80962725,0.000109,2]
[340284767,1729006232425,-215.50541664,0.000109,2]
[340284769,1729006232435,-1056.99878813,0.000109,2]
[340284771,1729006232444,-500.0,0.00010973,2]
[340284772,1729006232454,-500.0,0.00010973,2]
[340284773,1729006232463,-9932.47186053,0.00010997,2]
[340284774,1729006232530,-328.209954,0.00010997,2]
[340284775,1729006232540,-520.59889113,0.00010998,2]
[340284776,1729006232552,-7995.01658679,0.00010998,2]
[340284777,1729006232561,-7032.65279961,0.00010998,2]
[340284778,1729006232571,-189.00161011,0.00010999,2]
[340284779,1729006232581,-643.74798228,0.00010999,2]
[340284780,1729006232590,-501.17066642,0.00010999,2]
[340284781,1729006232599,-500.0,0.00010999,2]
[340284782,1729006232609,-500.0,0.00010999,2]
[340284783,1729006232618,-500.0,0.00010999,2]
[340284784,1729006232627,-500.0,0.00010999,2]
[340284785,1729006232636,-500.0,0.00010999,2]
[340284786,1729006232646,-366.13442939,0.00010999,2]
[340284787,1729006232656,-194.82046045,0.00011,2]
[340284788,1729006232666,-108977.45546468,0.00011,2]
[340284789,1729006232678,-81373.14999999,0.00011,2]
[340284790,1729006232724,-754.06265944,0.00011,2]
[340284791,1729006232736,-656.70069,0.00011,2]
[340284792,1729006232747,-2741.12350871,0.00011,2]
[340284793,1729006232758,-83724.40756393,0.00011,2]
[340284794,1729006232891,-518.34734357,0.00011,2]
[340284795,1729006232971,-142.78108946,0.00011,2]
[340284796,1729006232984,-3788.0965427,0.00011,2]
[340284797,1729006232995,-13107.6,0.00011,2]
[340284799,1729006238396,-493.43865393,0.0001099,2]
[340284800,1729006238407,-493.43865393,0.0001099,2]
[340284801,1729006238417,-493.43865393,0.0001099,2]
[340284802,1729006238427,-1066.28403821,0.00011,2]
[340284803,1729006238455,-7626.19378738,0.00011,2]
[340284804,1729006238466,-878.69942469,0.00011,2]
[340284805,1729006238646,-500.0,0.00010973,2]
[340284806,1729006238656,-74220.1980036,0.00011,2]
[340284807,1729006238667,-327.5,0.00011,2]
[340284808,1729006238681,-16932.32639603,0.00011,2]
[340284809,1729006238703,-1363.02997939,0.00011,2]
[340284810,1729006238798,-999886.13313182,0.00011,2]
[340284811,1729006238848,-13153.68747997,0.00011,2]
[340284839,1729006241067,-87377.22512806,0.00011,2]
[340284840,1729006241087,-657.39169932,0.00011,2]
[340284841,1729006241101,-991.01662177,0.00011,2]
[340284842,1729006241112,-2225.65622046,0.00011,2]
[340284843,1729006241123,-435.7803936,0.00011,2]
[340284844,1729006241135,-1966.016224,0.00011,2]
[340284845,1729006241148,-437.27941378,0.00011,2]
[340284846,1729006241160,-255.15948479,0.00011,2]
[340284849,1729006243518,-163.57,0.00010959,2]
[340284850,1729006243528,-844.31253625,0.00011,2]
[340284851,1729006243541,-12265.16231245,0.00011,2]
[340284852,1729006243573,-42195.161567,0.00011,2]
[340284853,1729006243585,-652.46,0.00011,2]
[340284854,1729006243596,-4608.06807084,0.00011,2]
[340284855,1729006243629,-312.355,0.00011,2]
[340284856,1729006243640,-1114.83113561,0.00011,2]
[340284857,1729006243693,-689.2999998,0.00011,2]
[340284858,1729006243854,-1400794.30469462,0.00011,2]
[340284859,1729006243866,-11159.39,0.00011,2]
[340284865,1729006246382,-431.83139995,0.00011,2]
[340284866,1729006246439,-6208.34880148,0.00011,2]
[340284867,1729006246463,-18879.59398987,0.00011,2]
[340284868,1729006246478,-986.332,0.00011,2]
[340284869,1729006246500,-163800.19054758,0.00011,2]
[340284870,1729006246519,-3070.01056032,0.00011,2]
[340284871,1729006246535,-136517.27199456,0.00011,2]
[340284872,1729006246560,-652.03,0.00011,2]
[340284873,1729006246578,-1940.73829803,0.00011,2]
[340284874,1729006246597,-25449.9999,0.00011,2]
[340284875,1729006246615,-8400.0,0.00011,2]
[340284876,1729006246634,-26053.27978899,0.00011,2]
[340284877,1729006246672,-1242.40000003,0.00011,2]
[340284878,1729006246691,-290.38875,0.00011,2]
[340284881,1729006246715,-32677.04815984,0.00011,2]
[340284902,1729006392584,2000.0,0.00027,120]
[340284903,1729006396180,520.998201,0.00027,120]
[340284904,1729006399302,500.0,0.00027,120]
[340284905,1729006701167,-500.0,0.000109,2]
[340284906,1729006740796,-349.34,0.0001078,2]
[340284907,1729006740819,-150.66,0.0001078,2]
[340284908,1729006993000,2000.0,0.00027,120]
[340284909,1729007205769,485.59,9.962e-05,2]
[340284910,1729007432232,-432.27808991,0.000107,2]
[340284911,1729007432241,-3249.61949075,0.00010777,2]
[340284912,1729007432251,-23.559,0.0001078,2]
[340284913,1729007432260,-769.36341934,0.00010799,2]
[340284914,1729007432271,-279.69657276,0.00010799,2]
[340284915,1729007432282,-267.2200079,0.00010799,2]
[340284916,1729007432292,-150.0,0.00010877,2]
[340284917,1729007432301,-658.2099921,0.00010877,2]
[340284918,1729007432313,-344.19142609,0.00010877,2]
[340284919,1729007432325,-741.44858181,0.00010877,2]
[340284920,1729007432336,-150.0,0.00010899,2]
[340284921,1729007432346,-300.0,0.00010899,2]
[340284922,1729007432358,-161.53429974,0.000109,2]
[340284923,1729007432367,-892.52303263,0.000109,2]
[340284924,1729007432379,-119.6566435,0.000109,2]
[340284925,1729007432388,-621.8106779,0.000109,2]
[340284926,1729007432399,-1372.61805374,0.000109,2]
[340284927,1729007432411,-2314.4383043,0.000109,2]
[340284928,1729007432558,-2746.56846016,0.000109,2]
[340284929,1729007432571,-916.28511764,0.000109,2]
[340284930,1729007432580,-584.1953852,0.000109,2]
[340284931,1729007432592,-529.66441867,0.000109,2]
[340284932,1729007432604,-552.46305185,0.000109,2]
[340284933,1729007435344,-255.97559429,0.000109,2]
[340284934,1729007435362,-266.00029076,0.000109,2]
[340284935,1729007435378,-358.03106852,0.000109,2]
[340284936,1729007435389,-449.8648924,0.000109,2]
[340284937,1729007435465,-1859.80511636,0.000109,2]
[340284938,1729007435482,-645.2515,0.000109,2]
[340284943,1729007437687,-10181.92755462,0.000109,2]
[340284944,1729007437698,-215.50541664,0.000109,2]
[340284945,1729007437708,-172.07133922,0.000109,2]
[340284946,1729007437718,-164.17,0.00010959,2]
[340284947,1729007437731,-448.86217691,0.00010973,2]
[340284948,1729007437741,-500.0,0.00010973,2]
[340284949,1729007437751,-360.31,0.00010997,2]
[340284950,1729007437760,-1472.71950775,0.00010997,2]
[340284951,1729007437772,-7285.52049225,0.00010997,2]
[340284952,1729007437781,-499.24759221,0.00010997,2]
[340284953,1729007437791,-428.25568314,0.00010999,2]
[340284954,1729007437800,-499.99,0.00010999,2]
[340284955,1729007437810,-508.73,0.00010999,2]
[340284956,1729007437819,-22703.4574324,0.00011,2]
[340284957,1729007437830,-13565.0,0.00011,2]
[340284958,1729007437841,-24528.90035,0.00011,2]
[340284959,1729007437853,-54170.55,0.00011,2]
[340284960,1729007437864,-9553.154996,0.00011,2]